bitfinex-derivatives/quotes_BTCF0:USTF0_20250724
["timestamp","ask_amount","ask_price","bid_price","bid_amount"]
[1753316263814,0.99979834,118800.0,118790.0,0.89147049]
[1753316264015,0.40843834,118800.0,118790.0,0.89147049]
[1753316264216,0.93961494,118800.0,118790.0,0.89147049]
[1753316264916,0.34797494,118800.0,118790.0,0.89147049]
[1753316265126,0.93965494,118800.0,118790.0,0.52147049]
[1753316265417,0.93965494,118800.0,118790.0,0.90147049]
[1753316265608,0.93965494,118800.0,118790.0,1.19887049]
[1753316265815,0.34797494,118800.0,118790.0,1.19887049]
[1753316266010,0.94005494,118800.0,118790.0,1.19887049]
[1753316266613,0.94005494,118800.0,118790.0,0.88728816]
[1753316267222,0.34797494,118800.0,118790.0,1.20728816]
[1753316267522,0.94005494,118800.0,118790.0,1.20728816]
[1753316267914,0.94005494,118800.0,118790.0,1.23564816]
[1753316268110,0.98536472,118800.0,118790.0,1.27644816]
[1753316268316,0.98536472,118800.0,118790.0,1.64644816]
[1753316269110,0.39328472,118800.0,118790.0,1.64644816]
[1753316269414,0.98616472,118800.0,118790.0,1.64644816]
[1753316269818,0.91429494,118800.0,118790.0,1.64644816]
[1753316270014,0.88389494,118800.0,118790.0,1.64644816]
[1753316270220,0.86479472,118800.0,118790.0,1.64644816]
[1753316270718,0.86479472,118800.0,118790.0,1.64744816]
[1753316271319,0.27179472,118800.0,118790.0,1.64744816]
[1753316271719,0.27179472,118800.0,118790.0,1.64844816]
[1753316272915,0.14251494,118800.0,118790.0,1.64844816]
[1753316273922,0.22357494,118800.0,118790.0,1.64844816]
[1753316275119,0.26237494,118800.0,118790.0,1.64844816]
[1753316276420,0.22357494,118800.0,118790.0,1.64844816]
[1753316277020,0.26237494,118800.0,118790.0,1.64844816]
[1753316278526,0.28843494,118800.0,118790.0,1.64844816]
[1753316279828,0.31706494,118800.0,118790.0,1.33973492]
[1753316280030,0.36237472,118800.0,118790.0,1.64844816]
[1753316280329,0.38693472,118800.0,118790.0,1.33973492]
[1753316280630,0.38693472,118800.0,118790.0,1.64844816]
[1753316280829,0.38693472,118800.0,118790.0,1.62008816]
[1753316281026,0.38693472,118800.0,118790.0,0.94137492]
[1753316281231,0.38693472,118800.0,118790.0,0.64397492]
[1753316281529,0.38693472,118800.0,118790.0,1.30268816]
[1753316282327,0.38693472,118800.0,118790.0,1.30168816]
[1753316282640,0.38693472,118800.0,118790.0,1.33004816]
[1753316283230,0.38693472,118800.0,118790.0,1.32904816]
[1753316285227,0.98021472,118800.0,118790.0,1.32904816]
[1753316287729,0.98021472,118800.0,118790.0,1.27484816]
[1753316288530,0.98021472,118800.0,118790.0,0.94943816]
[1753316288733,0.98021472,118800.0,118790.0,1.29943816]
[1753316289233,0.98021472,118800.0,118790.0,1.32649816]
[1753316291940,0.98021472,118800.0,118790.0,0.97649816]
[1753316292437,0.98021472,118800.0,118790.0,1.35649816]
[1753316295439,0.98021472,118800.0,118790.0,1.65389816]
[1753316296538,0.26888472,118800.0,118790.0,1.65389816]
[1753316296738,0.86180472,118800.0,118790.0,1.65389816]
[1753316298130,0.86180472,118800.0,118790.0,1.65489816]
[1753316298335,0.86180472,118800.0,118790.0,2.24781816]
[1753316298530,0.86180472,118800.0,118790.0,2.24881816]
[1753316300835,0.86180472,118800.0,118790.0,1.94010492]
[1753316301041,0.86180472,118800.0,118790.0,2.24881816]
[1753316301337,0.86180472,118800.0,118790.0,1.34718492]
[1753316301543,0.97582472,118800.0,118790.0,1.65589816]
[1753316304736,0.26888472,118800.0,118790.0,1.65589816]
[1753316304941,0.86112472,118800.0,118790.0,1.65589816]
[1753316306942,0.89660472,118800.0,118790.0,1.65589816]
[1753316307944,0.86112472,118800.0,118790.0,1.65589816]
[1753316308542,0.86128472,118800.0,118790.0,1.65589816]
[1753316309543,0.86124472,118800.0,118790.0,1.65589816]
[1753316310139,0.26888472,118800.0,118790.0,1.65589816]
[1753316310340,0.22357494,118800.0,118790.0,1.9646114]
[1753316311748,0.14251494,118800.0,118790.0,1.9646114]
[1753316312243,0.18782472,118800.0,118790.0,1.9646114]
[1753316312550,0.26489472,118800.0,118790.0,2.24849816]
[1753316313854,0.21958494,118800.0,118790.0,2.24849816]
[1753316317444,0.21958494,118800.0,118790.0,2.24825816]
[1753316317650,0.21958494,118800.0,118790.0,2.24821816]
[1753316317851,0.25747494,118800.0,118790.0,2.24821816]
[1753316318150,0.30278472,118800.0,118790.0,2.24821816]
[1753316318553,0.25747494,118800.0,118790.0,2.24821816]
[1753316321148,0.25747494,118800.0,118790.0,1.93950492]
[1753316321351,0.21958494,118800.0,118790.0,2.24821816]
[1753316321654,0.21958494,118800.0,118790.0,1.93950492]
[1753316321856,0.21958494,118800.0,118790.0,2.24821816]
[1753316322646,0.14251494,118800.0,118790.0,2.55739543]
[1753316323953,0.09251494,118800.0,118790.0,2.55739543]
[1753316324151,4e-08,118800.0,118790.0,2.55739543]
[1753316324357,0.07733,118810.0,118800.0,0.2180221]
[1753316324651,0.20310918,118810.0,118800.0,1.52624858]
[1753316325058,0.20310918,118810.0,118800.0,1.82364858]
[1753316325653,0.20310918,118810.0,118800.0,1.2062221]
[1753316325859,0.20310918,118810.0,118800.0,1.51493534]
[1753316326158,0.20310918,118810.0,118800.0,1.82364858]
[1753316326961,0.20310918,118810.0,118800.0,1.82464858]
[1753316327153,0.20310918,118810.0,118800.0,1.82564858]
[1753316332962,0.12577918,118810.0,118800.0,1.82564858]
[1753316333759,0.07733,118820.0,118810.0,0.2180079]
[1753316333954,0.11522,118830.0,118820.0,0.1925338]
[1753316334159,0.07733,118830.0,118820.0,1.25750704]
[1753316334359,0.20328199,118830.0,118820.0,1.25750704]
[1753316336064,0.22242465,118830.0,118820.0,1.25750704]
[1753316336661,0.22242465,118830.0,118820.0,1.26604597]
[1753316336662,0.22342465,118830.0,118820.0,1.26604597]
[1753316337163,0.22342465,118830.0,118820.0,0.95733273]
[1753316337364,0.22342465,118830.0,118820.0,1.26604597]
[1753316340468,0.26131465,118830.0,118820.0,1.26604597]
[1753316340770,0.33703465,118830.0,118820.0,1.26604597]
[1753316342069,0.26131465,118830.0,118820.0,1.26604597]
[1753316342370,0.26131465,118830.0,118820.0,0.95733273]
[1753316342571,0.26131465,118830.0,118820.0,1.26604597]
[1753316342773,0.26131465,118830.0,118820.0,0.95733273]
[1753316343158,0.26131465,118830.0,118820.0,1.26604597]
[1753316343669,0.28448465,118830.0,118820.0,1.26604597]
[1753316345162,0.03643,118840.0,118820.0,1.57475921]
[1753316345376,0.09851141,118840.0,118830.0,1.34327612]
[1753316345665,0.14362308,118840.0,118830.0,1.70327612]
[1753316346467,0.22400308,118840.0,118830.0,1.08584964]
[1753316346668,0.22400308,118840.0,118830.0,1.39456288]
[1753316346868,0.22400308,118840.0,118830.0,1.08584964]
[1753316347068,0.22400308,118840.0,118830.0,1.39456288]
[1753316347966,0.22400308,118840.0,118830.0,2.00012288]
[1753316348168,0.16092148,118840.0,118830.0,1.69140964]
[1753316348367,0.16092148,118840.0,118830.0,2.00012288]
[1753316348775,0.01392188,118840.0,118830.0,2.06298288]
[1753316349073,0.06374862,118840.0,118830.0,2.06298288]
[1753316349271,2e-08,118840.0,118830.0,2.06298288]
[1753316350582,0.00100002,118840.0,118830.0,2.06298288]
[1753316351470,0.11681,118850.0,118840.0,0.54080548]
[1753316351471,0.19566,118850.0,118840.0,0.54080548]
[1753316351675,0.19566,118850.0,118840.0,1.68228872]
[1753316351875,0.19566,118850.0,118840.0,1.37357548]
[1753316352075,0.31937406,118850.0,118840.0,1.68228872]
[1753316352275,0.31937406,118850.0,118840.0,0.90160548]
[1753316352475,0.31937406,118850.0,118840.0,1.13411872]
[1753316352678,0.67339708,118850.0,118840.0,0.82540538]
[1753316352881,0.36468384,118850.0,118840.0,0.82540538]
[1753316353380,0.32137406,118850.0,118840.0,0.82540538]
[1753316353872,0.32337406,118850.0,118840.0,0.82540538]
[1753316354073,0.49156536,118850.0,118840.0,0.82540538]
[1753316354269,0.32337406,118850.0,118840.0,0.82540538]
[1753316354479,0.860742,118850.0,118840.0,0.82540538]
[1753316355381,1.27903,118850.0,118840.0,0.65719998]
[1753316355580,1.5793666,118850.0,118840.0,0.46460548]
[1753316355781,1.2185666,118850.0,118840.0,0.46460548]
[1753316356571,1.27903,118850.0,118840.0,0.46460548]
[1753316357983,0.0194134,118850.0,118840.0,1.81544713]
[1753316358183,0.03632,118880.0,118870.0,0.322013]
[1753316358383,0.04487716,118890.0,118880.0,0.3328389]
[1753316358581,0.04487716,118890.0,118880.0,1.34235214]
[1753316358787,0.17075132,118890.0,118880.0,1.48976105]
[1753316359187,0.21604641,118890.0,118880.0,1.48976105]
[1753316359483,0.17075132,118890.0,118880.0,1.79847429]
[1753316360071,0.81953132,118890.0,118880.0,1.79847429]
[1753316363385,0.81953132,118890.0,118880.0,2.09487427]
[1753316364281,0.81953132,118890.0,118880.0,2.09587427]
[1753316364780,0.81953132,118890.0,118880.0,1.50597489]
[1753316364781,0.93481132,118890.0,118880.0,1.50597489]
[1753316364983,0.93481132,118890.0,118880.0,0.69636324]
[1753316365182,0.93481132,118890.0,118880.0,1.23451204]
[1753316365584,0.93481132,118890.0,118880.0,1.27254204]
[1753316365791,0.93481132,118890.0,118880.0,1.29305204]
[1753316366088,0.93481132,118890.0,118880.0,1.31305204]
[1753316366687,0.33009132,118890.0,118880.0,1.36435204]
[1753316366891,0.81817132,118890.0,118880.0,1.67306528]
[1753316367398,0.21481132,118890.0,118880.0,1.67306528]
[1753316367694,0.81789132,118890.0,118880.0,1.67306528]
[1753316367991,0.81777132,118890.0,118880.0,1.67306528]
[1753316368395,0.21481132,118890.0,118880.0,1.67306528]
[1753316368582,0.87967132,118890.0,118880.0,1.67306528]
[1753316368789,0.93297132,118890.0,118880.0,1.00435204]
[1753316369093,0.93281132,118890.0,118880.0,0.99003204]
[1753316369786,0.93281132,118890.0,118880.0,0.86451204]
[1753316371989,0.93281132,118890.0,118880.0,1.23451204]
[1753316373794,0.93281132,118890.0,118880.0,0.5309488]
[1753316374096,1.10094612,118890.0,118880.0,0.5309488]
[1753316374290,0.93281132,118890.0,118880.0,0.5309488]
[1753316374494,1.10094612,118890.0,118880.0,0.5309488]
[1753316374892,0.93281132,118890.0,118880.0,0.5309488]
[1753316376296,6e-08,118890.0,118880.0,1.87113142]
[1753316376492,0.04942,118900.0,118890.0,0.2558747]
[1753316376693,0.0228615,118900.0,118890.0,1.40569794]
[1753316376895,1.5,118910.0,118900.0,0.3861705]
[1753316377094,1.5,118910.0,118900.0,1.39568374]
[1753316377298,0.04529509,118920.0,118910.0,0.4702061]
[1753316377299,0.02751,118920.0,118910.0,0.4702061]
[1753316377595,0.21506093,118920.0,118910.0,1.57409829]
[1753316377903,0.12697093,118920.0,118910.0,1.57409829]
[1753316378286,0.12697093,118920.0,118910.0,2.37135443]
[1753316378491,0.09203373,118920.0,118910.0,2.37135443]
[1753316379098,0.09203373,118920.0,118910.0,1.83381529]
[1753316379300,0.09203373,118920.0,118910.0,2.43893529]
[1753316384603,1.69206,118940.0,118930.0,0.3161481]
[1753316384800,1.69206,118940.0,118930.0,1.72405479]
[1753316385105,1.69358972,118940.0,118930.0,2.32913479]
[1753316385603,1.69358972,118940.0,118930.0,2.32389479]
[1753316385801,1.73664972,118940.0,118930.0,2.32389479]
[1753316386001,1.73964972,118940.0,118930.0,2.32389479]
[1753316386303,1.69958972,118940.0,118930.0,2.32913479]
[1753316386800,1.69958972,118940.0,118930.0,1.72405479]
[1753316387004,1.69958972,118940.0,118930.0,2.32917479]
[1753316390006,1.69958972,118940.0,118930.0,2.52203093]
[1753316390903,1.69858972,118940.0,118930.0,2.54090445]
[1753316391109,0.14816972,118940.0,118930.0,2.54090445]
[1753316391611,1.64816972,118940.0,118930.0,2.54090445]
[1753316392703,1.60552972,118940.0,118930.0,2.54090445]
[1753316393506,0.04414279,118950.0,118940.0,0.329764]
[1753316393808,0.04414279,118950.0,118940.0,1.37163069]
[1753316394007,0.16128712,118950.0,118940.0,1.56448683]
[1753316394504,0.21070712,118950.0,118940.0,1.56448683]
[1753316394708,0.16528712,118950.0,118940.0,1.56448683]
[1753316395494,1.66528712,118950.0,118940.0,1.56448683]
[1753316395909,1.71470712,118950.0,118940.0,1.56448683]
[1753316396308,1.71470712,118950.0,118940.0,1.57279607]
[1753316396804,1.71270712,118950.0,118940.0,1.57379607]
[1753316397309,1.71070712,118950.0,118940.0,1.57379607]
[1753316397701,1.66128712,118950.0,118940.0,1.57379607]
[1753316398602,1.61864712,118950.0,118940.0,1.57379607]
[1753316398908,1.66128712,118950.0,118940.0,1.57379607]
[1753316400211,1.59774202,118950.0,118940.0,1.57379607]
[1753316400507,1.59774202,118950.0,118940.0,1.57479607]
[1753316400508,1.55510202,118950.0,118940.0,1.57479607]
[1753316400807,1.50960482,118950.0,118940.0,1.57479607]
[1753316401005,0.09206,118960.0,118950.0,0.2373399]
[1753316401202,0.09206,118960.0,118950.0,2.12594932]
[1753316401402,0.15085,118960.0,118950.0,2.12594932]
[1753316401604,0.22021,118960.0,118950.0,2.12070932]
[1753316402004,0.22021,118960.0,118950.0,2.07439932]
[1753316402216,0.22028708,118960.0,118950.0,2.07439932]
[1753316402607,0.22028708,118960.0,118950.0,2.12078932]
[1753316403611,0.22028708,118960.0,118950.0,1.82016318]
[1753316404200,0.22028708,118960.0,118950.0,0.90842318]
[1753316404401,0.22028708,118960.0,118950.0,1.28842318]
[1753316405310,0.22028708,118960.0,118950.0,1.34095318]
[1753316406412,0.22028708,118960.0,118950.0,1.34901318]
[1753316406608,0.18022708,118960.0,118950.0,1.3489067]
[1753316406910,0.15092708,118960.0,118950.0,1.3489067]
[1753316407108,0.15092708,118960.0,118950.0,1.9532667]
[1753316407510,0.15092708,118960.0,118950.0,2.14612284]
[1753316408305,0.15092708,118960.0,118950.0,1.9532667]
[1753316408609,0.22859708,118960.0,118950.0,1.9452067]
[1753316409009,0.22859708,118960.0,118950.0,1.9532667]
[1753316409312,0.18059708,118960.0,118950.0,1.9532667]
[1753316414322,0.04271708,118960.0,118950.0,2.14612284]
[1753316414816,0.09686708,118960.0,118950.0,2.14612284]
[1753316420020,0.04271708,118960.0,118950.0,2.45394612]
[1753316420721,0.04271708,118960.0,118950.0,2.4764723]
[1753316420919,0.04271708,118960.0,118950.0,2.4784723]
[1753316421319,7.708e-05,118960.0,118950.0,2.4784723]
[1753316421714,7.708e-05,118960.0,118950.0,2.4968654]
[1753316422026,0.04521708,118960.0,118950.0,2.4968654]
[1753316422621,0.04521708,118960.0,118950.0,2.18904212]
[1753316422823,0.04521708,118960.0,118950.0,2.18536212]
[1753316423524,0.04521708,118960.0,118950.0,2.4931854]
[1753316424426,0.04521708,118960.0,118950.0,2.4971854]
[1753316428021,1.5,118970.0,118960.0,0.4082358]
[1753316428223,0.1001,118980.0,118970.0,0.1680217]
[1753316428418,0.132924,118980.0,118970.0,1.94108926]
[1753316428624,0.2273607,118980.0,118970.0,1.93631926]
[1753316428822,0.2753607,118980.0,118970.0,1.93631926]
[1753316429129,0.2753607,118980.0,118970.0,1.35099577]
[1753316429334,0.32065579,118980.0,118970.0,1.95051577]
[1753316429524,0.2753607,118980.0,118970.0,1.35099577]
[1753316429718,0.2753607,118980.0,118970.0,1.37352195]
[1753316429924,0.2753607,118980.0,118970.0,1.37752195]
[1753316430118,0.3205007,118980.0,118970.0,1.37952195]
[1753316430317,0.3205007,118980.0,118970.0,1.43205195]
[1753316430523,0.1241207,118980.0,118970.0,1.62967809]
[1753316430721,0.1241207,118980.0,118970.0,1.60715191]
[1753316430923,0.1241207,118980.0,118970.0,1.62967809]
[1753316431230,0.1782707,118980.0,118970.0,1.60715191]
[1753316431730,0.3205007,118980.0,118970.0,1.40952577]
[1753316435628,0.0202571,118980.0,118970.0,1.60729191]
[1753316435933,0.1826771,118980.0,118970.0,1.60729191]
[1753316436122,0.1456271,118980.0,118970.0,1.60729191]
[1753316436328,0.1168771,118980.0,118970.0,1.60729191]
[1753316436528,0.0366272,118980.0,118970.0,1.60729191]
[1753316436833,1.55192,118990.0,118980.0,0.4101375]
[1753316437033,1.55192,118990.0,118980.0,1.99704078]
[1753316437232,1.57561693,118990.0,118980.0,1.99704078]
[1753316437635,1.52369693,118990.0,118980.0,1.99704078]
[1753316438030,1.57561693,118990.0,118980.0,1.99704078]
[1753316438428,1.52369693,118990.0,118980.0,2.18989692]
[1753316438923,1.62031693,118990.0,118980.0,2.18989692]
[1753316439423,1.52369693,118990.0,118980.0,2.18989692]
[1753316440436,1.56839693,118990.0,118980.0,2.18989692]
[1753316440731,1.62031693,118990.0,118980.0,2.18989692]
[1753316441231,0.12031693,118990.0,118980.0,2.4977202]
[1753316441436,0.12031693,118990.0,118980.0,2.18989692]
[1753316442429,0.02369693,118990.0,118980.0,2.18989692]
[1753316443437,0.12031693,118990.0,118980.0,2.18989692]
[1753316445338,0.12031693,118990.0,118980.0,2.18945692]
[1753316445936,0.02369693,118990.0,118980.0,2.2119831]
[1753316446540,0.02369693,118990.0,118980.0,2.2115431]
[1753316446740,0.12031693,118990.0,118980.0,1.6141431]
[1753316447040,0.14906693,118990.0,118980.0,2.2113031]
[1753316448141,0.18611693,118990.0,118980.0,2.2113031]
[1753316449144,0.18611693,118990.0,118980.0,2.5087031]
[1753316449339,0.18611693,118990.0,118980.0,2.5094231]
[1753316450244,0.18611693,118990.0,118980.0,2.2120231]
[1753316450432,0.12031693,118990.0,118980.0,2.2120231]
[1753316450835,0.12031693,118990.0,118980.0,2.18949692]
[1753316451341,0.21724693,118990.0,118980.0,2.18949692]
[1753316452036,0.14906693,118990.0,118980.0,2.18949692]
[1753316452443,0.14906693,118990.0,118980.0,1.88167364]
[1753316452641,0.14906693,118990.0,118980.0,2.18949692]
[1753316453245,0.14906693,118990.0,118980.0,1.88167364]
[1753316453446,0.14906693,118990.0,118980.0,2.18949692]
[1753316453647,0.14906693,118990.0,118980.0,2.2120231]
[1753316455045,0.14906693,118990.0,118980.0,1.90419982]
[1753316455235,0.14906693,118990.0,118980.0,2.2120231]
[1753316455641,0.18611693,118990.0,118980.0,2.2120231]
[1753316457250,0.14906693,118990.0,118980.0,2.2120231]
[1753316457749,0.18611693,118990.0,118980.0,2.2120231]
[1753316457956,0.18611693,118990.0,118980.0,2.18949692]
[1753316458545,0.14906693,118990.0,118980.0,2.18949692]
[1753316459151,0.14906693,118990.0,118980.0,1.59161692]
[1753316459343,0.26331693,118990.0,118980.0,2.19025692]
[1753316460151,0.21724693,118990.0,118980.0,2.19025692]
[1753316460538,0.21724693,118990.0,118980.0,1.88243364]
[1753316460744,0.21724693,118990.0,118980.0,2.2127831]
[1753316461649,0.21724693,118990.0,118980.0,1.6141431]
[1753316461851,0.21724693,118990.0,118980.0,2.2122631]
[1753316462044,0.21724693,118990.0,118980.0,1.90443982]
[1753316462247,0.21724693,118990.0,118980.0,2.2122631]
[1753316464855,0.26280693,118990.0,118980.0,2.2122631]
[1753316465054,0.26280693,118990.0,118980.0,2.18973692]
[1753316465254,0.26280693,118990.0,118980.0,2.2122631]
[1753316465555,0.26280693,118990.0,118980.0,2.2120231]
[1753316466356,0.26280693,118990.0,118980.0,0.87133368]
[1753316466556,0.26280693,118990.0,118980.0,1.22572696]
[1753316467056,0.26280693,118990.0,118980.0,1.27997696]
[1753316467251,0.26280693,118990.0,118980.0,1.32591696]
[1753316470057,0.26280693,118990.0,118980.0,1.62331696]
[1753316471061,0.26280693,118990.0,118980.0,1.60079078]
[1753316473060,0.26280693,118990.0,118980.0,1.2929675]
[1753316473263,0.26280693,118990.0,118980.0,1.60079078]
[1753316475769,0.26280693,118990.0,118980.0,1.2929675]
[1753316476264,0.26280693,118990.0,118980.0,1.60079078]
[1753316477766,0.26280693,118990.0,118980.0,2.19703078]
[1753316478567,0.26280693,118990.0,118980.0,1.60079078]
[1753316478865,0.26280693,118990.0,118980.0,2.19703078]
[1753316479662,0.26280693,118990.0,118980.0,1.60079078]
[1753316479863,0.26280693,118990.0,118980.0,1.50060078]
[1753316480067,0.26280693,118990.0,118980.0,1.18060078]
[1753316480271,0.30810202,118990.0,118980.0,1.47403078]
[1753316480472,0.32300638,118990.0,118980.0,1.47403078]
[1753316480973,0.26280693,118990.0,118980.0,1.52060078]
[1753316481677,0.26280693,118990.0,118980.0,1.27745078]
[1753316481865,0.3081316,118990.0,118980.0,1.0155675]
[1753316482062,0.26280693,118990.0,118980.0,1.32339078]
[1753316482976,0.3081316,118990.0,118980.0,1.32339078]
[1753316483178,0.2314416,118990.0,118980.0,1.32339078]
[1753316484380,0.2314416,118990.0,118980.0,1.0155675]
[1753316484573,0.2314416,118990.0,118980.0,1.32339078]
[1753316484878,0.2314416,118990.0,118980.0,1.0155675]
[1753316485177,0.2314416,118990.0,118980.0,1.32339078]
[1753316486179,0.2628616,118990.0,118980.0,1.91939078]
[1753316487572,0.2628616,118990.0,118980.0,1.9089675]
[1753316487771,0.2628616,118990.0,118980.0,2.21679078]
[1753316488290,0.1656416,118990.0,118980.0,2.21679078]
[1753316490482,0.12031693,118990.0,118980.0,2.21679078]
[1753316490683,0.02369693,118990.0,118980.0,2.23931942]
[1753316492086,0.06865693,118990.0,118980.0,2.23931942]
[1753316492288,0.11928693,118990.0,118980.0,1.93149614]
[1753316492486,0.11928693,118990.0,118980.0,2.23931942]
[1753316492685,0.11928693,118990.0,118980.0,2.21679078]
[1753316492984,0.11928693,118990.0,118980.0,2.23931392]
[1753316494286,0.02369693,118990.0,118980.0,2.43217006]
[1753316494992,0.02369693,118990.0,118980.0,2.40964692]
[1753316495687,0.06901693,118990.0,118980.0,2.40964692]
[1753316496088,0.12105693,118990.0,118980.0,2.40964692]
[1753316496289,0.12105693,118990.0,118980.0,2.43217006]
[1753316497183,0.12105693,118990.0,118980.0,2.81654332]
[1753316498187,0.12105693,118990.0,118980.0,2.79402018]
[1753316498386,0.06901693,118990.0,118980.0,2.79402018]
[1753316498688,0.02369693,118990.0,118980.0,2.79402018]
[1753316502277,0.04680552,119000.0,118990.0,0.202263]
[1753316502482,0.00148085,119000.0,118990.0,2.42944736]
[1753316502682,0.00148085,119000.0,118990.0,2.6223035]
[1753316502683,0.12707885,119000.0,118990.0,2.6223035]
[1753316502982,0.17239885,119000.0,118990.0,2.6223035]
[1753316503184,0.22443885,119000.0,118990.0,2.6220235]
[1753316503381,0.36298885,119000.0,118990.0,2.42916736]
[1753316503889,0.21857885,119000.0,118990.0,2.42916736]
[1753316504788,0.21957885,119000.0,118990.0,2.42916736]
[1753316505790,0.12643885,119000.0,118990.0,2.42916736]
[1753316506088,0.07439885,119000.0,118990.0,2.42916736]
[1753316506283,0.12643885,119000.0,118990.0,2.42916736]
[1753316509297,0.07439885,119000.0,118990.0,2.6220235]
[1753316509987,0.12643885,119000.0,118990.0,2.6220235]
[1753316517784,0.21957885,119000.0,118990.0,2.42916736]
[1753316520899,0.15520885,119000.0,118990.0,2.42916736]
[1753316521390,0.15520885,119000.0,118990.0,1.374783]
[1753316521794,0.15520885,119000.0,118990.0,1.83624736]
[1753316522294,0.19093885,119000.0,118990.0,1.83624736]
[1753316522996,0.23626352,119000.0,118990.0,1.83624736]
[1753316523197,0.19093885,119000.0,118990.0,1.83624736]
[1753316523393,0.23626352,119000.0,118990.0,1.83624736]
[1753316523791,0.23626352,119000.0,118990.0,1.374783]
[1753316523992,0.23626352,119000.0,118990.0,1.83624736]
[1753316525202,0.20053352,119000.0,118990.0,1.83624736]
[1753316526204,0.12643885,119000.0,118990.0,1.83624736]
[1753316526409,0.17176352,119000.0,118990.0,1.83624736]
[1753316526598,0.07440352,119000.0,118990.0,2.04774898]
[1753316527004,0.02907885,119000.0,118990.0,2.04774898]
[1753316527305,0.07440352,119000.0,118990.0,2.04774898]
[1753316528608,0.02907885,119000.0,118990.0,2.07028194]
[1753316531909,0.02907885,119000.0,118990.0,1.60881758]
[1753316532207,0.02907885,119000.0,118990.0,2.07028194]
[1753316532412,0.12454885,119000.0,118990.0,2.07028194]
[1753316532613,0.15552885,119000.0,118990.0,1.60881758]
[1753316532803,0.15552885,119000.0,118990.0,2.4687058]
[1753316532999,0.12454885,119000.0,118990.0,2.00724144]
[1753316533211,0.12454885,119000.0,118990.0,2.4687058]
[1753316533406,0.12454885,119000.0,118990.0,2.44617284]
[1753316533607,0.15552885,119000.0,118990.0,2.44617284]
[1753316534011,0.19045885,119000.0,118990.0,2.44617284]
[1753316534209,0.21862885,119000.0,118990.0,2.44617284]
[1753316534515,0.26239885,119000.0,118990.0,1.39342848]
[1753316534707,0.26239885,119000.0,118990.0,1.85489284]
[1753316534909,0.26239885,119000.0,118990.0,2.44617284]
[1753316536408,0.26239885,119000.0,118990.0,1.85489284]
[1753316536722,0.26239885,119000.0,118990.0,2.44617284]
[1753316537816,0.21862885,119000.0,118990.0,2.44617284]
[1753316538615,0.12454885,119000.0,118990.0,2.63902898]
[1753316538811,0.02907885,119000.0,118990.0,2.63902898]
[1753316540411,0.07254885,119000.0,118990.0,2.63902898]
[1753316541219,0.02907885,119000.0,118990.0,2.63902898]
[1753316541419,0.02907885,119000.0,118990.0,2.86976116]
[1753316542218,0.02907885,119000.0,118990.0,2.63902898]
[1753316542423,0.02907885,119000.0,118990.0,2.86976116]
[1753316544316,0.02907885,119000.0,118990.0,2.67690502]
[1753316544621,0.02907885,119000.0,118990.0,2.86976116]
[1753316547620,0.07254885,119000.0,118990.0,2.86976116]
[1753316548308,0.02907885,119000.0,118990.0,2.86968116]
[1753316549412,0.02907885,119000.0,118990.0,2.27848116]
[1753316549715,0.02907885,119000.0,118990.0,2.86968116]
[1753316550731,0.02807885,119000.0,118990.0,2.86968116]
[1753316551224,0.02807885,119000.0,118990.0,2.27848116]
[1753316551424,0.02807885,119000.0,118990.0,2.86968116]
[1753316551628,0.02807885,119000.0,118990.0,2.63894898]
[1753316551812,0.02707885,119000.0,118990.0,2.63894898]
[1753316552324,0.02707885,119000.0,118990.0,2.86968116]
[1753316552713,0.02707885,119000.0,118990.0,2.63894898]
[1753316552918,0.02707885,119000.0,118990.0,2.86968116]
[1753316553924,0.07103885,119000.0,118990.0,2.86968116]
[1753316555820,0.02707885,119000.0,118990.0,2.86968116]
[1753316556214,0.07103885,119000.0,118990.0,2.86968116]
[1753316561717,0.12369885,119000.0,118990.0,2.86968116]
[1753316563021,0.12369885,119000.0,118990.0,2.63894898]
[1753316563929,0.18450885,119000.0,118990.0,2.04774898]
[1753316564128,0.25626885,119000.0,118990.0,2.63878898]
[1753316564724,0.21376885,119000.0,118990.0,2.63878898]
[1753316565030,0.25626885,119000.0,118990.0,2.44593284]
[1753316565826,0.21376885,119000.0,118990.0,2.44593284]
[1753316570026,0.21376885,119000.0,118990.0,1.85489284]
[1753316570226,0.25626885,119000.0,118990.0,2.42199284]
[1753316570829,0.25626885,119000.0,118990.0,2.44394284]
[1753316572835,0.25626885,119000.0,118990.0,2.44390284]
[1753316573030,0.30159352,119000.0,118990.0,2.44390284]
[1753316573231,0.25626885,119000.0,118990.0,2.44390284]
[1753316575941,0.12369885,119000.0,118990.0,2.44390284]
[1753316576743,0.07103885,119000.0,118990.0,2.44390284]
[1753316579542,0.12369885,119000.0,118990.0,2.44390284]
[1753316582945,0.12369885,119000.0,118990.0,1.98243848]
[1753316583146,0.12369885,119000.0,118990.0,2.44390284]
[1753316584245,0.12369885,119000.0,118990.0,1.85294284]
[1753316584434,0.12369885,119000.0,118990.0,2.44378284]
[1753316586041,0.12369885,119000.0,118990.0,1.85294284]
[1753316587248,0.12369885,119000.0,118990.0,2.44374284]
[1753316587744,0.12369885,119000.0,118990.0,1.85294284]
[1753316587947,0.15278885,119000.0,118990.0,2.44570284]
[1753316588147,0.18521885,119000.0,118990.0,2.44570284]
[1753316588938,0.18521885,119000.0,118990.0,2.44870284]
[1753316590646,0.18521885,119000.0,118990.0,2.44866284]
[1753316590647,0.25680885,119000.0,118990.0,2.44866284]
[1753316592752,0.21318885,119000.0,118990.0,2.44866284]
[1753316594653,0.25680885,119000.0,118990.0,2.44866284]
[1753316595050,0.21318885,119000.0,118990.0,2.44866284]
[1753316595447,0.25680885,119000.0,118990.0,2.44866284]
[1753316595745,0.21318885,119000.0,118990.0,2.44866284]
[1753316596946,0.18521885,119000.0,118990.0,2.44866284]
[1753316599341,0.25680885,119000.0,118990.0,2.44866284]
[1753316599546,0.25680885,119000.0,118990.0,2.19582066]
[1753316600149,0.25680885,119000.0,118990.0,2.44693284]
[1753316600556,0.25680885,119000.0,118990.0,2.21620066]
[1753316600956,0.30213352,119000.0,118990.0,2.19582066]
[1753316601252,0.30213352,119000.0,118990.0,1.96508848]
[1753316601560,0.30213352,119000.0,118990.0,1.49252066]
[1753316602650,0.25680885,119000.0,118990.0,1.49252066]
[1753316602954,0.5328657,119000.0,118990.0,1.49252066]
[1753316603151,0.30213352,119000.0,118990.0,1.49252066]
[1753316603950,0.76359788,119000.0,118990.0,0.863793]
[1753316604155,1.29145669,119000.0,118990.0,0.863793]
[1753316604353,1.29145669,119000.0,118990.0,1.09452518]
[1753316604553,1.24609303,119000.0,118990.0,1.09452518]
[1753316605155,1.64480441,119000.0,118990.0,0.172993]
[1753316605356,1.70500386,119000.0,118990.0,0.172993]
[1753316608060,1.70500386,119000.0,118990.0,1.15462518]
[1753316608061,1.30625248,119000.0,118990.0,1.15462518]
[1753316608361,1.47423168,119000.0,118990.0,1.20863518]
[1753316608557,1.70496386,119000.0,118990.0,0.637903]
[1753316609060,1.70496386,119000.0,118990.0,0.603893]
[1753316609755,1.53689186,119000.0,118990.0,0.603893]
[1753316610659,1.0754275,119000.0,118990.0,0.603893]
[1753316610861,1.53689186,119000.0,118990.0,0.603893]